[Event "African Games-chT 2019"]
[Site "Casablanca"]
[Date "2019.08.24"]
[Round "2.26"]
[White "Eichab, Charles"]
[Black "Traore, Bakary"]
[Result "0-1"]
[ECO "A15"]
[WhiteElo "2016"]
[BlackElo "2189"]
[Annotator "NA"]
[PlyCount "86"]
[EventDate "2019.08.24"]
[EventType "team-tourn"]
[EventCountry "MAR"]
[SourceTitle "playchess.com"]
[Source "ChessBase"]
[SourceQuality "1"]
[WhiteTeam "Namibia"]
[BlackTeam "Mali"]
[WhiteTeamCountry "NAM"]
[BlackTeamCountry "MLI"]
[TimeControl "900+10"]

1. c4 {[%emt 0:00:00]} Nf6 {[%emt 0:00:00]} 2. g3 {[%emt 0:00:00]} g6 {[%emt 0:00:00]} 3. Bg2 {[%emt 0:00:00]} Bg7 {[%emt 0:00:00]} 4. Nc3 {[%emt 0:00:00]} e5 {[%emt 0:00:00]} 5. Rb1 {[%emt 0:01:07]} Nc6 {[%emt 0:00:00]} 6. d3 {[%emt 0:00:05]} O-O {[%emt 0:00:00]} 7. b4 {[%emt 0:00:12]} d6 {[%emt 0:00:18]} 8. Nf3 {[%emt 0:00:23]} Nd4 {[%emt 0:00:12]} 9. e3 {[%emt 0:00:48]} Nxf3+ {[%emt 0:00:13]} 10. Qxf3 {[%emt 0:00:03]} a5 {[%emt 0:00:58]} 11. Qd1 {[%emt 0:00:42]} axb4 {[%emt 0:00:20]} 12. Rxb4 {[%emt 0:00:02]} c6 {[%emt 0:00:03]} 13. O-O {[%emt 0:00:22]} Qc7 {[%emt 0:00:11]} 14. Qb3 {[%emt 0:02:17]} Nd7 {[%emt 0:00:09]} 15. Bd2 {[%emt 0:00:23]} Nc5 {[%emt 0:00:08]} 16. Qc2 Bf5 {[%emt 0:00:08]} 17. e4 {[%emt 0:01:49]} Bg4 {[%emt 0:00:33]} 18. Be3 {[%emt 0:01:02]} Be6 {[%emt 0:01:16]} 19. Rfb1 {[%emt 0:00:05]} Bc8 {[%emt 0:00:13]} 20. f4 {[%emt 0:00:56]} f5 {[%emt 0:00:24]} 21. fxe5 {[%emt 0:00:14]} Na6 {[%emt 0:00:29]} 22. R4b2 {[%emt 0:02:37]} dxe5 {[%emt 0:00:08]} 23. Na4 {[%emt 0:00:31]} f4 {[%emt 0:00:03]} 24. Bf2 {[%emt 0:00:42]} Rf7 {[%emt 0:01:54]} 25. Nb6 {[%emt 0:00:47]} Rb8 {[%emt 0:00:11]} 26. Nxc8 {[%emt 0:00:48]} Qxc8 {[%emt 0:00:12]} 27. gxf4 {[%emt 0:00:45]} exf4 {[%emt 0:00:09]} 28. d4 {[%emt 0:01:25]} Qg4 {[%emt 0:00:53]} 29. Kh1 {[%emt 0:00:33]} c5 {[%emt 0:01:21]} 30. dxc5 {[%emt 0:00:51]} Bxb2 31. Rxb2 {[%emt 0:00:05]} f3 {[%emt 0:00:22]} 32. Bf1 {[%emt 0:00:00]} Re8 {[%emt 0:00:01]} 33. h3 {[%emt 0:00:23]} Qxe4 {[%emt 0:00:02]} 34. Qxe4 {[%emt 0:00:06]} Rxe4 {[%emt 0:00:01]} 35. Rb6 {[%emt 0:00:06]} Re2 {[%emt 0:00:05]} 36. Kg1 {[%emt 0:00:21]} Rxa2 {[%emt 0:00:12]} 37. c6 {[%emt 0:00:05]} bxc6 {[%emt 0:00:10]} 38. Rxc6 {[%emt 0:00:01]} Nb4 {[%emt 0:00:06]} 39. Rc8+ {[%emt 0:00:23]} Kg7 {[%emt 0:00:12]} 40. c5 {[%emt 0:00:03]} Rf5 {[%emt 0:00:10]} 41. Rc7+ {[%emt 0:00:21]} Kf8 {[%emt 0:00:23]} 42. h4 {[%emt 0:00:20]} Rf4 {[%emt 0:00:06]} 43. Bg3 {[%emt 0:00:06]} Rg4 {[%emt 0:00:06]} 0-1

[Event "African Games-chT 2019"]
[Site "Casablanca"]
[Date "2019.08.24"]
[Round "2.29"]
[White "Amba, Oyon Marius Claude"]
[Black "Asante Debesai Zerabruk"]
[Result "0-1"]
[ECO "B18"]
[WhiteElo "1911"]
[BlackElo "1712"]
[Annotator "NA"]
[PlyCount "244"]
[EventDate "2019.08.24"]
[EventType "team-tourn"]
[EventCountry "MAR"]
[SourceTitle "playchess.com"]
[Source "ChessBase"]
[SourceQuality "1"]
[WhiteTeam "CMR"]
[BlackTeam "Eritrea"]
[BlackTeamCountry "ERI"]
[TimeControl "900+10"]

1. e4 {[%emt 0:00:00]} c6 {[%emt 0:00:00]} 2. Nc3 {[%emt 0:00:00]} d5 {[%emt 0:00:00]} 3. d4 {[%emt 0:00:00]} dxe4 {[%emt 0:00:00]} 4. Nxe4 {[%emt 0:00:00]} Bf5 {[%emt 0:00:00]} 5. Ng3 {[%emt 0:00:02]} Bg6 {[%emt 0:00:00]} 6. Nf3 {[%emt 0:00:04]} e6 {[%emt 0:00:00]} 7. Bd3 {[%emt 0:00:04]} Bxd3 {[%emt 0:00:00]} 8. Qxd3 {[%emt 0:00:02]} Nd7 {[%emt 0:00:01]} 9. O-O {[%emt 0:00:05]} Be7 {[%emt 0:00:04]} 10. Bf4 {[%emt 0:00:28]} Ngf6 {[%emt 0:00:01]} 11. Rad1 {[%emt 0:00:05]} O-O {[%emt 0:00:12]} 12. c4 {[%emt 0:00:03]} Re8 {[%emt 0:01:29]} 13. Ne5 {[%emt 0:00:10]} Nxe5 {[%emt 0:00:14]} 14. Bxe5 {[%emt 0:00:03]} Bd6 {[%emt 0:00:09]} 15. f4 {[%emt 0:00:57]} Ng4 {[%emt 0:01:52]} 16. Qf3 {[%emt 0:00:05]} Qh4 {[%emt 0:01:18]} 17. h3 {[%emt 0:00:09]} Nxe5 {[%emt 0:00:11]} 18. fxe5 {[%emt 0:00:05]} Bc7 {[%emt 0:00:14]} 19. Qxf7+ {[%emt 0:00:04]} Kh8 {[%emt 0:00:05]} 20. Nh5 {[%emt 0:00:22]} Qg5 {[%emt 0:00:44]} 21. Rf3 {[%emt 0:00:49]} h6 {[%emt 0:03:07]} 22. Rg3 {[%emt 0:00:25]} Re7 {[%emt 0:00:00]} 23. Qf3 {[%emt 0:01:28]} Qf5 {[%emt 0:01:14]} 24. Qe2 {[%emt 0:00:16]} Rf7 {[%emt 0:02:27]} 25. Qg4 {[%emt 0:04:46]} Qxg4 {[%emt 0:00:55]} 26. Rxg4 {[%emt 0:00:01]} Raf8 {[%emt 0:00:09]} 27. Rd2 {[%emt 0:00:26]} c5 {[%emt 0:00:27]} 28. Ng3 {[%emt 0:01:49]} cxd4 {[%emt 0:00:12]} 29. Kh2 {[%emt 0:00:30]} Bxe5 {[%emt 0:00:24]} 30. Re4 {[%emt 0:00:11]} Rf5 {[%emt 0:01:03]} 31. h4 {[%emt 0:01:02]} Bxg3+ {[%emt 0:00:11]} 32. Kxg3 {[%emt 0:00:02]} e5 {[%emt 0:00:01]} 33. Rde2 {[%emt 0:00:24]} Re8 {[%emt 0:00:14]} 34. Rxd4 {[%emt 0:00:10]} Kg8 {[%emt 0:00:34]} 35. Rd7 {[%emt 0:00:12]} Rf7 {[%emt 0:00:01]} 36. Rxf7 {[%emt 0:00:09]} Kxf7 {[%emt 0:00:01]} 37. Rd2 {[%emt 0:00:06]} Ke6 {[%emt 0:00:02]} 38. Kf3 {[%emt 0:00:03]} g6 {[%emt 0:00:11]} 39. Ke4 {[%emt 0:00:03]} Rf8 {[%emt 0:00:04]} 40. g3 {[%emt 0:00:03]} Rf1 {[%emt 0:00:12]} 41. Re2 {[%emt 0:00:14]} Rg1 {[%emt 0:00:07]} 42. Re3 {[%emt 0:01:13]} Rg2 {[%emt 0:00:01]} 43. Rb3 {[%emt 0:00:09]} b6 {[%emt 0:00:06]} 44. a4 {[%emt 0:00:15]} Re2+ {[%emt 0:00:01]} 45. Kf3 {[%emt 0:00:02]} Rc2 {[%emt 0:00:01]} 46. Rb4 {[%emt 0:00:18]} h5 {[%emt 0:00:04]} 47. Ke3 {[%emt 0:00:08]} Kf5 {[%emt 0:00:07]} 48. a5 {[%emt 0:00:12]} e4 {[%emt 0:00:24]} 49. axb6 {[%emt 0:00:13]} axb6 {[%emt 0:00:02]} 50. Rb5+ {[%emt 0:00:02]} Kg4 {[%emt 0:00:43]} 51. Rg5+ {[%emt 0:00:02]} Kh3 {[%emt 0:00:01]} 52. Rxg6 {[%emt 0:00:02]} Rxb2 {[%emt 0:00:09]} 53. Kxe4 {[%emt 0:00:02]} Rb4 {[%emt 0:00:25]} 54. Kd5 {[%emt 0:00:09]} Rb3 {[%emt 0:00:11]} 55. Rg5 {[%emt 0:00:32]} Rd3+ {[%emt 0:01:31]} 56. Kc6 {[%emt 0:00:05]} Rc3 {[%emt 0:00:03]} 57. Kb5 {[%emt 0:00:17]} Rb3+ {[%emt 0:00:17]} 58. Ka4 {[%emt 0:00:03]} Rc3 {[%emt 0:00:12]} 59. Kb4 {[%emt 0:00:03]} Re3 {[%emt 0:00:15]} 60. Rxh5 {[%emt 0:00:05]} Kxg3 {[%emt 0:00:07]} 61. Rh6 {[%emt 0:00:12]} Kf4 {[%emt 0:01:31]} 62. Rxb6 {[%emt 0:00:06]} Ke5 {[%emt 0:00:04]} 63. Kc5 {[%emt 0:00:20]} Re4 {[%emt 0:00:12]} 64. h5 {[%emt 0:00:14]} Rh4 65. Rh6 {[%emt 0:00:13]} Rh1 {[%emt 0:00:06]} 66. Rh8 {[%emt 0:00:02]} Ra1 {[%emt 0:00:11]} 67. Re8+ {[%emt 0:00:10]} Kf6 {[%emt 0:00:02]} 68. h6 {[%emt 0:00:16]} Rh1 {[%emt 0:00:31]} 69. Rd8 {[%emt 0:00:25]} Ke7 {[%emt 0:00:08]} 70. Rh8 {[%emt 0:00:17]} Kd7 {[%emt 0:00:08]} 71. Rh7+ {[%emt 0:00:14]} Ke6 {[%emt 0:00:07]} 72. Kc6 {[%emt 0:00:19]} Ra1 {[%emt 0:00:02]} 73. c5 {[%emt 0:00:11]} Ra6+ {[%emt 0:00:08]} 74. Kb7 {[%emt 0:00:19]} Ra1 {[%emt 0:00:01]} 75. c6 {[%emt 0:00:03]} Rb1+ {[%emt 0:00:04]} 76. Kc8 {[%emt 0:00:04]} Kd6 {[%emt 0:00:03]} 77. Rb7 {[%emt 0:02:20]} Rh1 {[%emt 0:00:07]} 78. h7 {[%emt 0:00:03]} Kxc6 {[%emt 0:00:06]} 79. Rg7 {[%emt 0:00:11]} Kd6 {[%emt 0:00:04]} 80. Kd8 {[%emt 0:00:01]} Ke6 {[%emt 0:00:04]} 81. Ke8 {[%emt 0:00:02]} Kf6 {[%emt 0:00:43]} 82. Kf8 {[%emt 0:00:02]} Rb1 {[%emt 0:00:29]} 83. Rf7+ {[%emt 0:00:22]} Kg6 {[%emt 0:00:00]} 84. h8=N+ {[%emt 0:02:11]} Kg5 {[%emt 0:00:05]} 85. Rg7+ {[%emt 0:00:02]} Kf4 {[%emt 0:00:03]} 86. Ng6+ {[%emt 0:00:02]} Ke4 {[%emt 0:00:19]} 87. Re7+ {[%emt 0:00:03]} Kd4 {[%emt 0:00:33]} 88. Kf7 {[%emt 0:00:09]} Rf1+ {[%emt 0:00:02]} 89. Ke8 {[%emt 0:00:03]} Ra1 {[%emt 0:00:10]} 90. Rd7+ {[%emt 0:00:04]} Ke4 {[%emt 0:00:04]} 91. Ke7 {[%emt 0:00:03]} Ra6 {[%emt 0:00:07]} 92. Nf8 {[%emt 0:00:06]} Ke5 {[%emt 0:00:28]} 93. Rc7 {[%emt 0:00:08]} Ra2 {[%emt 0:00:45]} 94. Rc5+ {[%emt 0:00:05]} Ke4 {[%emt 0:00:02]} 95. Ne6 {[%emt 0:00:04]} Ra7+ {[%emt 0:00:03]} 96. Kf6 {[%emt 0:00:01]} Ra6 {[%emt 0:00:04]} 97. Re5+ {[%emt 0:00:09]} Kf3 {[%emt 0:00:02]} 98. Kf5 {[%emt 0:00:03]} Ra8 {[%emt 0:00:09]} 99. Ng5+ {[%emt 0:00:07]} Kf2 {[%emt 0:00:22]} 100. Re4 {[%emt 0:00:08]} Rf8+ {[%emt 0:00:06]} 101. Kg4 {[%emt 0:00:02]} Rg8 {[%emt 0:00:05]} 102. Re5 {[%emt 0:00:17]} Rg7 {[%emt 0:00:06]} 103. Kf4 {[%emt 0:00:06]} Rg8 {[%emt 0:00:10]} 104. Ne4+ {[%emt 0:00:13]} Kg2 {[%emt 0:00:05]} 105. Ke3 {[%emt 0:00:08]} Rg7 {[%emt 0:00:05]} 106. Rf5 {[%emt 0:00:07]} Rg8 {[%emt 0:00:43]} 107. Rf2+ {[%emt 0:00:05]} Kh3 {[%emt 0:00:13]} 108. Rf3+ {[%emt 0:00:28]} Kg2 {[%emt 0:00:08]} 109. Rf2+ {[%emt 0:00:05]} Kh3 {[%emt 0:00:01]} 110. Nf6 {[%emt 0:00:05]} Rg3+ {[%emt 0:00:07]} 111. Kf4 {[%emt 0:00:03]} Ra3 {[%emt 0:00:27]} 112. Rf1 {[%emt 0:00:05]} Ra4+ {[%emt 0:00:01]} 113. Ne4 {[%emt 0:00:08]} Kg2 {[%emt 0:00:04]} 114. Rf3 {[%emt 0:00:10]} Kh2 {[%emt 0:00:04]} 115. Rd3 {[%emt 0:00:20]} Kg2 {[%emt 0:00:04]} 116. Rd8 {[%emt 0:00:02]} Kf1 {[%emt 0:00:13]} 117. Rg8 {[%emt 0:00:32]} Ke2 {[%emt 0:00:09]} 118. Rg3 {[%emt 0:00:19]} Kf1 {[%emt 0:00:09]} 119. Rc3 {[%emt 0:00:14]} Ke2 {[%emt 0:00:24]} 120. Rb3 {[%emt 0:00:08]} Rc4 {[%emt 0:00:16]} 121. Rb2+ {[%emt 0:00:14]} Kf1 {[%emt 0:00:11]} 122. Kf3 {[%emt 0:00:12]} Ke1 0-1

[Event "African Games-chT 2019"]
[Site "Casablanca"]
[Date "2019.08.24"]
[Round "2.37"]
[White "Kourakoumba, Florent"]
[Black "Rita, Jeorciley"]
[Result "0-1"]
[ECO "C50"]
[WhiteElo "1677"]
[BlackElo "1920"]
[Annotator "NA"]
[PlyCount "218"]
[EventDate "2019.08.24"]
[EventType "team-tourn"]
[EventCountry "MAR"]
[SourceTitle "playchess.com"]
[Source "ChessBase"]
[SourceQuality "1"]
[WhiteTeam "CAF"]
[BlackTeam "STP"]
[TimeControl "900+10"]

1. e4 {[%emt 0:00:00]} e5 {[%emt 0:00:00]} 2. Bc4 {[%emt 0:00:00]} Bc5 {[%emt 0:00:51]} 3. Nf3 {[%emt 0:00:02]} Nc6 {[%emt 0:00:03]} 4. O-O Nf6 5. d3 {[%emt 0:00:24]} h6 {[%emt 0:00:04]} 6. c3 {[%emt 0:00:06]} O-O {[%emt 0:00:25]} 7. a4 {[%emt 0:00:02]} a5 {[%emt 0:00:11]} 8. Nbd2 {[%emt 0:00:21]} d6 {[%emt 0:00:15]} 9. h3 {[%emt 0:00:02]} Be6 {[%emt 0:00:09]} 10. Bxe6 {[%emt 0:00:08]} fxe6 {[%emt 0:00:01]} 11. Nb3 {[%emt 0:00:07]} Ba7 {[%emt 0:00:21]} 12. Kh1 {[%emt 0:00:07]} Nh5 {[%emt 0:00:46]} 13. Nh2 {[%emt 0:00:03]} Nf4 {[%emt 0:00:06]} 14. Bxf4 {[%emt 0:00:16]} Rxf4 {[%emt 0:00:08]} 15. f3 {[%emt 0:00:14]} Qg5 {[%emt 0:00:19]} 16. Qe1 {[%emt 0:00:25]} Raf8 {[%emt 0:00:03]} 17. Nd2 {[%emt 0:00:24]} Ne7 {[%emt 0:00:16]} 18. Rd1 {[%emt 0:00:10]} Ng6 {[%emt 0:00:22]} 19. g3 {[%emt 0:00:15]} R4f7 {[%emt 0:00:15]} 20. h4 {[%emt 0:00:06]} Qh5 {[%emt 0:01:03]} 21. Kg2 {[%emt 0:00:20]} d5 {[%emt 0:02:05]} 22. Rh1 {[%emt 0:00:06]} Ne7 {[%emt 0:01:07]} 23. g4 {[%emt 0:00:17]} Qg6 {[%emt 0:00:10]} 24. Nhf1 {[%emt 0:00:40]} Rf4 {[%emt 0:00:30]} 25. Qg3 {[%emt 0:00:20]} Nc6 {[%emt 0:01:13]} 26. Re1 {[%emt 0:00:02]} Rd8 {[%emt 0:00:09]} 27. h5 {[%emt 0:00:16]} Qf6 {[%emt 0:00:25]} 28. Qh4 {[%emt 0:00:07]} Rf8 {[%emt 0:00:57]} 29. Qxf6 {[%emt 0:00:03]} R8xf6 {[%emt 0:00:01]} 30. Ng3 {[%emt 0:00:04]} Rf8 {[%emt 0:00:15]} 31. Ne2 {[%emt 0:00:02]} R4f7 {[%emt 0:01:52]} 32. Ref1 {[%emt 0:00:09]} Be3 {[%emt 0:00:03]} 33. Nb3 {[%emt 0:00:04]} b6 {[%emt 0:00:05]} 34. Ng3 {[%emt 0:00:16]} Rb8 {[%emt 0:01:07]} 35. Nc1 {[%emt 0:00:07]} b5 {[%emt 0:00:05]} 36. axb5 {[%emt 0:00:15]} Rxb5 {[%emt 0:00:01]} 37. b3 {[%emt 0:00:08]} Bxc1 {[%emt 0:00:31]} 38. Rxc1 {[%emt 0:00:01]} Rxb3 {[%emt 0:00:02]} 39. Rc2 {[%emt 0:00:01]} d4 {[%emt 0:00:29]} 40. Ne2 {[%emt 0:00:13]} dxc3 {[%emt 0:00:19]} 41. Rxc3 {[%emt 0:00:09]} Rxc3 {[%emt 0:00:24]} 42. Nxc3 {[%emt 0:00:01]} Nd4 {[%emt 0:00:01]} 43. Rf1 {[%emt 0:00:14]} Nc2 {[%emt 0:00:05]} 44. Rb1 {[%emt 0:00:15]} Rd7 {[%emt 0:00:12]} 45. Nb5 {[%emt 0:00:31]} c6 {[%emt 0:00:16]} 46. Nc3 {[%emt 0:00:18]} Rxd3 {[%emt 0:00:08]} 47. Rb8+ {[%emt 0:00:03]} Kf7 {[%emt 0:00:22]} 48. Rb7+ {[%emt 0:00:02]} Kf6 {[%emt 0:00:01]} 49. Na4 {[%emt 0:00:02]} Nd4 {[%emt 0:00:23]} 50. Nc5 {[%emt 0:00:28]} Rd2+ {[%emt 0:00:22]} 51. Kg3 {[%emt 0:00:04]} Ne2+ {[%emt 0:00:02]} 52. Kf2 {[%emt 0:00:05]} Nf4+ {[%emt 0:00:03]} 53. Ke1 {[%emt 0:00:13]} Re2+ {[%emt 0:00:30]} 54. Kf1 {[%emt 0:00:04]} g6 {[%emt 0:01:07]} 55. hxg6 {[%emt 0:00:05]} Kxg6 {[%emt 0:00:03]} 56. Nxe6 {[%emt 0:00:03]} Ra2 {[%emt 0:00:23]} 57. Nxf4+ {[%emt 0:00:03]} exf4 {[%emt 0:00:02]} 58. Rb6 {[%emt 0:00:07]} Rc2 {[%emt 0:00:11]} 59. Ra6 {[%emt 0:00:02]} Rc5 {[%emt 0:00:02]} 60. Ke2 {[%emt 0:00:07]} Kg5 {[%emt 0:00:04]} 61. Kd3 {[%emt 0:00:06]} Kh4 {[%emt 0:00:09]} 62. Kd4 {[%emt 0:00:01]} Rc1 {[%emt 0:01:02]} 63. Rxa5 {[%emt 0:00:03]} Kg3 {[%emt 0:00:03]} 64. e5 {[%emt 0:00:09]} Kxf3 {[%emt 0:00:08]} 65. e6 {[%emt 0:00:02]} Rd1+ {[%emt 0:00:17]} 66. Ke5 {[%emt 0:00:01]} Re1+ {[%emt 0:00:03]} 67. Kf5 {[%emt 0:00:03]} Kg3 {[%emt 0:00:06]} 68. Re5 {[%emt 0:00:01]} Rxe5+ {[%emt 0:00:15]} 69. Kxe5 {[%emt 0:00:01]} f3 {[%emt 0:00:01]} 70. e7 {[%emt 0:00:01]} f2 {[%emt 0:00:01]} 71. e8=Q f1=Q 72. Qxc6 {[%emt 0:00:46]} Qf4+ {[%emt 0:00:22]} 73. Ke6 {[%emt 0:00:23]} Qxg4+ {[%emt 0:00:04]} 74. Ke7 {[%emt 0:00:17]} Qg7+ {[%emt 0:00:22]} 75. Kd8 {[%emt 0:00:19]} Qf8+ {[%emt 0:00:15]} 76. Kc7 {[%emt 0:00:05]} Qe7+ {[%emt 0:00:32]} 77. Kb6 {[%emt 0:00:09]} Qe3+ {[%emt 0:00:22]} 78. Kc7 {[%emt 0:00:06]} Qf4+ {[%emt 0:00:07]} 79. Kb6 {[%emt 0:00:02]} h5 {[%emt 0:00:21]} 80. Qc3+ {[%emt 0:00:15]} Kg2 {[%emt 0:00:10]} 81. Qg7+ {[%emt 0:00:17]} Qg3 {[%emt 0:00:50]} 82. Qb7+ {[%emt 0:00:17]} Kh2 {[%emt 0:00:03]} 83. Kc5 {[%emt 0:00:51]} h4 {[%emt 0:00:09]} 84. Qb2+ {[%emt 0:00:18]} Kg1 {[%emt 0:00:03]} 85. Qc1+ {[%emt 0:00:14]} Kg2 {[%emt 0:00:02]} 86. Qh6 {[%emt 0:00:54]} h3 {[%emt 0:00:07]} 87. Kc4 {[%emt 0:00:11]} h2 {[%emt 0:00:07]} 88. Qd2+ {[%emt 0:00:16]} Qf2 {[%emt 0:00:10]} 89. Qg5+ {[%emt 0:00:06]} Kf1 {[%emt 0:00:04]} 90. Qc1+ {[%emt 0:00:15]} Ke2 {[%emt 0:00:18]} 91. Qc2+ {[%emt 0:00:12]} Kf3 {[%emt 0:00:15]} 92. Qf5+ {[%emt 0:00:03]} Kg3 {[%emt 0:00:02]} 93. Qg5+ {[%emt 0:00:05]} Kh3 {[%emt 0:00:08]} 94. Kb5 {[%emt 0:01:04]} h1=Q {[%emt 0:00:14]} 95. Qh6+ {[%emt 0:00:16]} Kg2 {[%emt 0:00:05]} 96. Qg5+ {[%emt 0:00:05]} Kf1 {[%emt 0:00:21]} 97. Qc1+ Kg2 98. Qg5+ {[%emt 0:00:45]} Kh3 {[%emt 0:00:13]} 99. Qh6+ {[%emt 0:00:19]} Qh4 {[%emt 0:00:08]} 100. Qe3+ {[%emt 0:00:07]} Kh2 {[%emt 0:00:04]} 101. Qe5+ {[%emt 0:00:17]} Kg1 {[%emt 0:00:36]} 102. Qa1+ {[%emt 0:00:22]} Kf2 {[%emt 0:00:04]} 103. Qb2+ {[%emt 0:00:10]} Kf3 {[%emt 0:00:03]} 104. Qc3+ {[%emt 0:00:06]} Kf4 {[%emt 0:00:04]} 105. Qc7+ {[%emt 0:00:11]} Kf5 {[%emt 0:00:12]} 106. Qf7+ {[%emt 0:00:07]} Qf6 {[%emt 0:00:04]} 107. Qd7+ {[%emt 0:00:08]} Kg6 {[%emt 0:00:21]} 108. Qe8+ {[%emt 0:00:14]} Kh6 {[%emt 0:00:11]} 109. Qe3+ {[%emt 0:00:06]} Qg5+ {[%emt 0:00:02]} 0-1

[Event "African Games-chT 2019"]
[Site "Casablanca"]
[Date "2019.08.24"]
[Round "2.38"]
[White "Espirito Santo, Waldyr"]
[Black "Koualet-Bebondi, Vianney Archeveq"]
[Result "1-0"]
[ECO "C41"]
[WhiteElo "1923"]
[BlackElo "1679"]
[Annotator "NA"]
[PlyCount "33"]
[EventDate "2019.08.24"]
[EventType "team-tourn"]
[EventCountry "MAR"]
[SourceTitle "playchess.com"]
[Source "ChessBase"]
[SourceQuality "1"]
[WhiteTeam "STP"]
[BlackTeam "CAF"]
[TimeControl "900+10"]

1. e4 {[%emt 0:00:00]} e5 {[%emt 0:00:00]} 2. Nf3 {[%emt 0:00:10]} d6 {[%emt 0:00:00]} 3. Bc4 {[%emt 0:00:33]} Be7 {[%emt 0:00:00]} 4. Nc3 {[%emt 0:00:16]} c6 {[%emt 0:00:02]} 5. d3 {[%emt 0:00:17]} Nd7 {[%emt 0:00:11]} 6. h3 {[%emt 0:00:19]} Nb6 {[%emt 0:00:30]} 7. Bb3 {[%emt 0:00:04]} h6 {[%emt 0:00:10]} 8. O-O {[%emt 0:00:19]} Nf6 {[%emt 0:00:20]} 9. Nh2 {[%emt 0:00:23]} O-O {[%emt 0:00:14]} 10. f4 {[%emt 0:00:04]} Nh7 {[%emt 0:00:20]} 11. fxe5 {[%emt 0:00:43]} dxe5 {[%emt 0:00:10]} 12. Ng4 {[%emt 0:00:24]} Bd6 {[%emt 0:00:34]} 13. Nxh6+ {[%emt 0:01:20]} gxh6 {[%emt 0:00:57]} 14. Bxh6 {[%emt 0:00:04]} Bd7 {[%emt 0:01:47]} 15. Qh5 {[%emt 0:01:42]} Qe7 {[%emt 0:00:41]} 16. Qg6+ {[%emt 0:00:59]} Kh8 {[%emt 0:02:08]} 17. Qg7# {[%emt 0:02:05]} 1-0

[Event "African Games-chT 2019"]
[Site "Casablanca"]
[Date "2019.08.24"]
[Round "3.3"]
[White "Wafa, Shrook"]
[Black "Nassr, Lina"]
[Result "1-0"]
[ECO "B40"]
[WhiteElo "2183"]
[BlackElo "1938"]
[Annotator "NA"]
[PlyCount "74"]
[EventDate "2019.08.24"]
[EventType "team-tourn"]
[EventCountry "MAR"]
[SourceTitle "playchess.com"]
[Source "ChessBase"]
[SourceQuality "1"]
[WhiteTeam "Egypt"]
[BlackTeam "Algeria"]
[WhiteTeamCountry "EGY"]
[BlackTeamCountry "ALG"]
[TimeControl "900+10"]

1. e4 {[%emt 0:00:00]} c5 {[%emt 0:00:00]} 2. Nf3 {[%emt 0:00:00]} e6 {[%emt 0:00:00]} 3. c4 {[%emt 0:00:02]} Nc6 {[%emt 0:00:00]} 4. d4 {[%emt 0:00:06]} cxd4 {[%emt 0:00:00]} 5. Nxd4 {[%emt 0:00:04]} Nf6 {[%emt 0:00:08]} 6. Nc3 {[%emt 0:00:05]} Bb4 {[%emt 0:00:04]} 7. Qd3 {[%emt 0:00:21]} d6 {[%emt 0:01:58]} 8. Be2 {[%emt 0:00:38]} O-O {[%emt 0:00:14]} 9. O-O {[%emt 0:00:14]} a6 {[%emt 0:00:58]} 10. Be3 {[%emt 0:01:03]} Qc7 {[%emt 0:01:31]} 11. f4 {[%emt 0:01:20]} Bc5 {[%emt 0:01:18]} 12. Kh1 {[%emt 0:02:09]} Rd8 {[%emt 0:01:25]} 13. Nxc6 {[%emt 0:02:24]} bxc6 {[%emt 0:01:32]} 14. Bxc5 {[%emt 0:00:09]} dxc5 {[%emt 0:00:02]} 15. Qe3 {[%emt 0:01:00]} e5 {[%emt 0:00:40]} 16. Qxc5 {[%emt 0:01:38]} exf4 {[%emt 0:03:59]} 17. e5 {[%emt 0:01:10]} Nd7 {[%emt 0:00:13]} 18. Qe7 {[%emt 0:00:04]} Rf8 {[%emt 0:01:45]} 19. Rad1 {[%emt 0:00:38]} Ra7 {[%emt 0:00:36]} 20. Rd6 {[%emt 0:01:34]} Nc5 {[%emt 0:00:37]} 21. Qxc7 {[%emt 0:00:27]} Rxc7 {[%emt 0:00:01]} 22. Rxf4 {[%emt 0:00:12]} Be6 {[%emt 0:00:34]} 23. b3 {[%emt 0:00:29]} Nb7 {[%emt 0:00:12]} 24. Rd1 {[%emt 0:00:15]} Re8 {[%emt 0:00:27]} 25. h3 {[%emt 0:01:20]} h6 {[%emt 0:00:23]} 26. Bf3 {[%emt 0:00:34]} Bc8 {[%emt 0:00:18]} 27. Re4 {[%emt 0:00:22]} Nc5 {[%emt 0:00:14]} 28. Re2 {[%emt 0:00:09]} Bb7 {[%emt 0:00:02]} 29. b4 {[%emt 0:00:17]} Ne6 {[%emt 0:00:04]} 30. c5 {[%emt 0:00:04]} Ng5 {[%emt 0:00:27]} 31. Rd6 {[%emt 0:00:19]} Nxf3 {[%emt 0:00:09]} 32. gxf3 {[%emt 0:00:02]} Rce7 {[%emt 0:00:11]} 33. f4 {[%emt 0:00:06]} Re6 {[%emt 0:00:11]} 34. Rxe6 {[%emt 0:00:04]} Rxe6 {[%emt 0:00:05]} 35. Rd2 {[%emt 0:00:05]} Kf8 {[%emt 0:00:18]} 36. Rd7 {[%emt 0:00:11]} Re7 {[%emt 0:00:04]} 37. Rxe7 {[%emt 0:00:07]} Kxe7 {[%emt 0:00:02]} 1-0

[Event "African Games-chT 2019"]
[Site "Casablanca"]
[Date "2019.08.24"]
[Round "3.4"]
[White "Latreche, Sabrina"]
[Black "Wafa, Shahenda"]
[Result "0-1"]
[ECO "B31"]
[WhiteElo "2064"]
[BlackElo "2139"]
[Annotator "NA"]
[PlyCount "90"]
[EventDate "2019.08.24"]
[EventType "team-tourn"]
[EventCountry "MAR"]
[SourceTitle "playchess.com"]
[Source "ChessBase"]
[SourceQuality "1"]
[WhiteTeam "Algeria"]
[BlackTeam "Egypt"]
[WhiteTeamCountry "ALG"]
[BlackTeamCountry "EGY"]
[TimeControl "900+10"]

1. e4 {[%emt 0:00:00]} c5 {[%emt 0:00:00]} 2. Nf3 {[%emt 0:00:00]} Nc6 {[%emt 0:00:00]} 3. Bb5 {[%emt 0:00:00]} g6 {[%emt 0:00:01]} 4. O-O {[%emt 0:00:00]} Bg7 {[%emt 0:00:05]} 5. Re1 {[%emt 0:00:01]} e5 {[%emt 0:00:09]} 6. Bc4 {[%emt 0:00:18]} d6 {[%emt 0:03:21]} 7. h3 {[%emt 0:00:40]} Nge7 {[%emt 0:00:25]} 8. Nc3 {[%emt 0:00:10]} O-O {[%emt 0:00:08]} 9. d3 {[%emt 0:00:12]} Na5 {[%emt 0:00:56]} 10. Bd5 {[%emt 0:00:12]} Nxd5 {[%emt 0:00:23]} 11. Nxd5 {[%emt 0:01:39]} Nc6 {[%emt 0:00:43]} 12. c4 {[%emt 0:00:41]} h6 {[%emt 0:01:26]} 13. a3 {[%emt 0:01:27]} a5 {[%emt 0:00:44]} 14. Bd2 {[%emt 0:00:52]} f5 {[%emt 0:00:53]} 15. Bc3 {[%emt 0:05:50]} fxe4 {[%emt 0:00:25]} 16. dxe4 {[%emt 0:00:05]} Nd4 {[%emt 0:00:31]} 17. Bxd4 {[%emt 0:00:34]} cxd4 {[%emt 0:00:32]} 18. Rc1 {[%emt 0:01:16]} Be6 {[%emt 0:00:42]} 19. Qb3 {[%emt 0:00:59]} Rf7 {[%emt 0:01:11]} 20. Nd2 {[%emt 0:01:48]} Qh4 {[%emt 0:00:36]} 21. Qg3 {[%emt 0:00:27]} Qh5 {[%emt 0:00:55]} 22. Nf1 {[%emt 0:00:51]} Raf8 {[%emt 0:00:12]} 23. Rc2 {[%emt 0:00:01]} g5 {[%emt 0:00:53]} 24. Nh2 {[%emt 0:00:04]} Qg6 {[%emt 0:00:20]} 25. h4 {[%emt 0:00:07]} Kh7 {[%emt 0:00:21]} 26. hxg5 {[%emt 0:00:04]} hxg5 {[%emt 0:00:13]} 27. Ng4 {[%emt 0:00:02]} Qh5 {[%emt 0:00:24]} 28. f3 {[%emt 0:00:04]} Rh8 {[%emt 0:01:12]} 29. Qh3 {[%emt 0:00:47]} Qxh3 {[%emt 0:00:06]} 30. gxh3 {[%emt 0:00:00]} Rxf3 {[%emt 0:00:09]} 31. Kg2 {[%emt 0:00:22]} Rhf8 {[%emt 0:00:15]} 32. Rh1 {[%emt 0:00:19]} Kg8 {[%emt 0:00:16]} 33. Ne7+ {[%emt 0:00:13]} Kh7 {[%emt 0:00:22]} 34. Nf5 {[%emt 0:00:01]} Rf4 {[%emt 0:00:08]} 35. Nxd6 {[%emt 0:00:09]} Kg6 {[%emt 0:00:10]} 36. Nxe5+ {[%emt 0:00:03]} Bxe5 {[%emt 0:00:03]} 37. Nxb7 {[%emt 0:00:04]} Rxe4 {[%emt 0:00:04]} 38. Nxa5 {[%emt 0:00:05]} d3 {[%emt 0:00:12]} 39. Rd2 {[%emt 0:00:03]} Re3 {[%emt 0:00:36]} 40. b3 {[%emt 0:00:20]} Bc3 {[%emt 0:00:18]} 41. Rf2 {[%emt 0:00:28]} Rxf2+ {[%emt 0:00:06]} 42. Kxf2 {[%emt 0:00:01]} Re2+ {[%emt 0:00:01]} 43. Kf3 {[%emt 0:00:09]} Bxa5 {[%emt 0:00:02]} 44. Rd1 {[%emt 0:00:07]} Bf5 {[%emt 0:00:03]} 45. b4 {[%emt 0:00:02]} Bc7 {[%emt 0:00:07]} 0-1